[Event "Chessable Masters - Torneo preliminare"]
[White "Liang, Awonder"]
[Black "Larino Nieto, David"]
[WhiteFideId "2056437"]
[BlackFideId "2256444"]
[WhiteElo "2508"]
[BlackElo "2496"]
[Result "1-0"]
[Round "2"]
[TimeControl "600+2"]
[Date "2023.03.13"]
[WhiteClock "0:02:28"]
[BlackClock "0:00:05"]

1. e4 {[%clk 0:09:58]}  c6 {[%clk 0:09:57]} 2. Nc3 {[%clk 0:09:52]}  g6 {[%clk 0:09:57]} 3. Nf3 {[%clk 0:09:54]}  d5 {[%clk 0:09:57]} 4. d4 {[%clk 0:09:43]}  Bg7 {[%clk 0:09:38]} 5. h3 {[%clk 0:09:42]}  dxe4 {[%clk 0:09:38]} 6. Nxe4 {[%clk 0:09:44]}  Nf6 {[%clk 0:09:40]} 7. Bd3 {[%clk 0:09:45]}  O-O {[%clk 0:09:40]} 8. O-O {[%clk 0:09:46]}  Qc7 {[%clk 0:08:35]} 9. Re1 {[%clk 0:09:41]}  Nxe4 {[%clk 0:08:25]} 10. Bxe4 {[%clk 0:09:39]}  Nd7 {[%clk 0:08:24]} 11. Qe2 {[%clk 0:09:35]}  e6 {[%clk 0:08:18]} 12. c3 {[%clk 0:09:25]}  c5 {[%clk 0:08:03]} 13. Be3 {[%clk 0:09:25]}  Nf6 {[%clk 0:07:55]} 14. Bc2 {[%clk 0:09:24]}  cxd4 {[%clk 0:05:51]} 15. Bxd4 {[%clk 0:09:23]}  Nd5 {[%clk 0:05:41]} 16. Bxg7 {[%clk 0:09:02]}  Kxg7 {[%clk 0:05:43]} 17. Bb3 {[%clk 0:09:03]}  Nf6 {[%clk 0:05:37]} 18. Rad1 {[%clk 0:08:47]}  b6 {[%clk 0:05:26]} 19. Nd4 {[%clk 0:08:40]}  a6 {[%clk 0:05:00]} 20. Rd3 {[%clk 0:07:42]}  Bb7 {[%clk 0:04:09]} 21. Bxe6 {[%clk 0:07:26]}  Rae8 {[%clk 0:04:05]} 22. Re3 {[%clk 0:07:07]}  Nh5 {[%clk 0:03:25]} 23. Bxf7 {[%clk 0:02:54]}  Rxe3 {[%clk 0:02:04]} 24. Qxe3 {[%clk 0:02:56]}  Kxf7 {[%clk 0:01:37]} 25. Ne6 {[%clk 0:02:55]}  Qd7 {[%clk 0:00:21]} 26. Nxf8 {[%clk 0:02:43]}  Kxf8 {[%clk 0:00:23]} 27. Qe6 {[%clk 0:02:35]}  Qxe6 {[%clk 0:00:08]} 28. Rxe6 {[%clk 0:02:37]}  Bxg2 {[%clk 0:00:09]} 29. Rxb6 {[%clk 0:02:38]}  Bxh3 {[%clk 0:00:09]} 30. Rxa6 {[%clk 0:02:38]}  Bf5 {[%clk 0:00:04]} 31. a4 {[%clk 0:02:38]}  Nf4 {[%clk 0:00:05]} 32. a5 {[%clk 0:02:39]}  h5 {[%clk 0:00:06]} 33. Rb6 {[%clk 0:02:33]}  Nd5 {[%clk 0:00:06]} 34. Rb7 {[%clk 0:02:31]}  Be4 {[%clk 0:00:03]} 35. a6 {[%clk 0:02:32]}  Nf6 {[%clk 0:00:04]} 36. Rb8+ {[%clk 0:02:30]}  Kg7 {[%clk 0:00:05]} 37. a7 {[%clk 0:02:32]}  h4 {[%clk 0:00:03]} 38. b4 {[%clk 0:02:24]}  h3 {[%clk 0:00:03]} 39. a8=Q {[%clk 0:02:24]}  Bxa8 {[%clk 0:00:04]} 40. Rxa8 {[%clk 0:02:26]}  g5 {[%clk 0:00:05]} 41. b5 {[%clk 0:02:27]}  Ne4 {[%clk 0:00:04]} 42. b6 {[%clk 0:02:27]}  Nd2 {[%clk 0:00:04]} 43. b7 {[%clk 0:02:27]}  Nf3+ {[%clk 0:00:05]} 44. Kh1 {[%clk 0:02:28]} 1-0


[Site "Internet"]

[Event "Chessable Masters - Torneo preliminare"]
[White "Pap, Gyula"]
[Black "Giri, Anish"]
[WhiteFideId "725323"]
[BlackFideId "24116068"]
[WhiteElo "2563"]
[BlackElo "2714"]
[Result "1/2-1/2"]
[Round "2"]
[TimeControl "600+2"]
[Date "2023.03.13"]
[WhiteClock "0:00:24"]
[BlackClock "0:03:59"]

1. d4 {[%clk 0:09:57]}  Nf6 {[%clk 0:09:58]} 2. c3 {[%clk 0:09:56]}  g6 {[%clk 0:09:45]} 3. Bg5 {[%clk 0:09:51]}  Bg7 {[%clk 0:09:41]} 4. e3 {[%clk 0:09:47]}  h6 {[%clk 0:09:41]} 5. Bh4 {[%clk 0:09:29]}  d6 {[%clk 0:09:41]} 6. Nf3 {[%clk 0:09:28]}  O-O {[%clk 0:09:08]} 7. Be2 {[%clk 0:09:27]}  Qe8 {[%clk 0:09:09]} 8. O-O {[%clk 0:08:41]}  e5 {[%clk 0:09:10]} 9. a4 {[%clk 0:08:40]}  a5 {[%clk 0:09:09]} 10. Na3 {[%clk 0:08:32]}  Bd7 {[%clk 0:08:02]} 11. Nb5 {[%clk 0:08:01]}  Na6 {[%clk 0:07:18]} 12. dxe5 {[%clk 0:05:49]}  dxe5 {[%clk 0:07:18]} 13. Nxe5 {[%clk 0:05:51]}  Qxe5 {[%clk 0:07:19]} 14. Bxf6 {[%clk 0:05:51]}  Qxf6 {[%clk 0:07:17]} 15. Qxd7 {[%clk 0:05:47]}  Rfd8 {[%clk 0:07:06]} 16. Qg4 {[%clk 0:05:36]}  Rd2 {[%clk 0:07:05]} 17. Rab1 {[%clk 0:05:10]}  h5 {[%clk 0:05:30]} 18. Qf3 {[%clk 0:04:30]}  c6 {[%clk 0:05:29]} 19. Na3 {[%clk 0:04:27]}  Nc5 {[%clk 0:05:27]} 20. Nc4 {[%clk 0:04:23]}  Rdd8 {[%clk 0:05:19]} 21. Qxf6 {[%clk 0:03:53]}  Bxf6 {[%clk 0:05:21]} 22. Ra1 {[%clk 0:03:48]}  Nb3 {[%clk 0:04:36]} 23. Ra3 {[%clk 0:02:01]}  Nd2 {[%clk 0:04:31]} 24. Re1 {[%clk 0:01:47]}  Be7 {[%clk 0:04:24]} 25. Raa1 {[%clk 0:01:24]}  Nxc4 {[%clk 0:04:24]} 26. Bxc4 {[%clk 0:01:25]}  Rd2 {[%clk 0:04:26]} 27. Re2 {[%clk 0:01:03]}  Rad8 {[%clk 0:04:24]} 28. Rxd2 {[%clk 0:00:57]}  Rxd2 {[%clk 0:04:24]} 29. Rb1 {[%clk 0:00:59]}  Kg7 {[%clk 0:03:56]} 30. Kf1 {[%clk 0:01:00]}  f5 {[%clk 0:03:48]} 31. Ke1 {[%clk 0:01:00]}  Rd8 {[%clk 0:03:49]} 32. Ke2 {[%clk 0:00:52]}  h4 {[%clk 0:03:51]} 33. b4 {[%clk 0:00:37]}  axb4 {[%clk 0:03:50]} 34. cxb4 {[%clk 0:00:39]}  b5 {[%clk 0:03:43]} 35. axb5 {[%clk 0:00:23]}  cxb5 {[%clk 0:03:45]} 36. Bxb5 {[%clk 0:00:23]}  Rb8 {[%clk 0:03:46]} 37. Bd3 {[%clk 0:00:14]}  Rxb4 {[%clk 0:03:47]} 38. Rxb4 {[%clk 0:00:15]}  Bxb4 {[%clk 0:03:48]} 39. g3 {[%clk 0:00:15]}  hxg3 {[%clk 0:03:49]} 40. hxg3 {[%clk 0:00:17]}  Kf6 {[%clk 0:03:50]} 41. f4 {[%clk 0:00:17]}  g5 {[%clk 0:03:51]} 42. Kf3 {[%clk 0:00:18]}  gxf4 {[%clk 0:03:52]} 43. exf4 {[%clk 0:00:18]}  Bd6 {[%clk 0:03:53]} 44. Bc2 {[%clk 0:00:18]}  Bc5 {[%clk 0:03:54]} 45. Bb1 {[%clk 0:00:19]}  Bd6 {[%clk 0:03:55]} 46. Bc2 {[%clk 0:00:21]}  Bc5 {[%clk 0:03:57]} 47. Bb1 {[%clk 0:00:22]}  Bd6 {[%clk 0:03:59]} 48. Bc2 {[%clk 0:00:24]} 1/2-1/2


[Site "Internet"]

[Event "Chessable Masters - Torneo preliminare"]
[White "Erigaisi, Arjun"]
[Black "Neiksans, Arturs"]
[WhiteFideId "35009192"]
[BlackFideId "11601388"]
[WhiteElo "2685"]
[BlackElo "2553"]
[Result "1-0"]
[Round "2"]
[TimeControl "600+2"]
[Date "2023.03.13"]
[WhiteClock "0:07:14"]
[BlackClock "0:02:25"]

1. d4 {[%clk 0:10:01]}  Nf6 {[%clk 0:09:52]} 2. c4 {[%clk 0:10:02]}  e6 {[%clk 0:09:53]} 3. Nc3 {[%clk 0:10:03]}  Bb4 {[%clk 0:09:53]} 4. f3 {[%clk 0:10:04]}  c5 {[%clk 0:09:51]} 5. d5 {[%clk 0:10:05]}  exd5 {[%clk 0:08:50]} 6. cxd5 {[%clk 0:10:06]}  d6 {[%clk 0:08:51]} 7. e4 {[%clk 0:10:04]}  a6 {[%clk 0:08:46]} 8. a4 {[%clk 0:09:59]}  Nbd7 {[%clk 0:08:44]} 9. Nh3 {[%clk 0:09:49]}  O-O {[%clk 0:08:29]} 10. Be2 {[%clk 0:09:41]}  Ne5 {[%clk 0:08:26]} 11. Nf2 {[%clk 0:09:41]}  Rb8 {[%clk 0:08:21]} 12. O-O {[%clk 0:09:40]}  Bd7 {[%clk 0:08:11]} 13. g4 {[%clk 0:08:49]}  b5 {[%clk 0:07:34]} 14. g5 {[%clk 0:08:49]}  Ne8 {[%clk 0:07:34]} 15. f4 {[%clk 0:08:50]}  Nc4 {[%clk 0:07:35]} 16. axb5 {[%clk 0:08:47]}  axb5 {[%clk 0:07:34]} 17. Bxc4 {[%clk 0:08:32]}  bxc4 {[%clk 0:07:35]} 18. f5 {[%clk 0:08:34]}  f6 {[%clk 0:06:17]} 19. h4 {[%clk 0:08:09]}  Rb7 {[%clk 0:04:55]} 20. g6 {[%clk 0:07:54]}  hxg6 {[%clk 0:03:53]} 21. fxg6 {[%clk 0:07:56]}  f5 {[%clk 0:03:54]} 22. Bg5 {[%clk 0:07:56]}  Nf6 {[%clk 0:03:55]} 23. Bxf6 {[%clk 0:07:47]}  Qxf6 {[%clk 0:03:17]} 24. Qh5 {[%clk 0:07:49]}  Re8 {[%clk 0:03:18]} 25. exf5 {[%clk 0:07:22]}  Bxc3 {[%clk 0:02:56]} 26. bxc3 {[%clk 0:07:24]}  Re3 {[%clk 0:02:26]} 27. Ra8+ {[%clk 0:07:13]}  Be8 {[%clk 0:02:25]} 28. Qh7+ {[%clk 0:07:14]} 1-0


[Site "Internet"]

[Event "Chessable Masters - Torneo preliminare"]
[White "Fressinet, Laurent"]
[Black "Durarbayli, Vasif"]
[WhiteFideId "608742"]
[BlackFideId "13402935"]
[WhiteElo "2689"]
[BlackElo "2531"]
[Result "0-1"]
[Round "2"]
[TimeControl "600+2"]
[Date "2023.03.13"]
[WhiteClock "0:00:18"]
[BlackClock "0:00:17"]

1. d4 {[%clk 0:08:32]}  Nf6 {[%clk 0:09:48]} 2. Nf3 {[%clk 0:08:33]}  e6 {[%clk 0:09:49]} 3. Bg5 {[%clk 0:08:32]}  h6 {[%clk 0:09:46]} 4. Bh4 {[%clk 0:08:32]}  c5 {[%clk 0:09:45]} 5. e3 {[%clk 0:08:10]}  d5 {[%clk 0:09:39]} 6. Nbd2 {[%clk 0:08:08]}  Nbd7 {[%clk 0:09:35]} 7. c3 {[%clk 0:08:03]}  Bd6 {[%clk 0:09:21]} 8. Bd3 {[%clk 0:07:57]}  O-O {[%clk 0:09:01]} 9. O-O {[%clk 0:07:54]}  b6 {[%clk 0:09:01]} 10. Qe2 {[%clk 0:07:41]}  Bb7 {[%clk 0:08:44]} 11. e4 {[%clk 0:07:26]}  dxe4 {[%clk 0:08:39]} 12. Bxe4 {[%clk 0:07:16]}  Qc7 {[%clk 0:08:11]} 13. Bxb7 {[%clk 0:07:13]}  Qxb7 {[%clk 0:08:12]} 14. Nc4 {[%clk 0:07:07]}  Be7 {[%clk 0:08:10]} 15. Rfd1 {[%clk 0:06:52]}  Rfd8 {[%clk 0:07:04]} 16. a4 {[%clk 0:06:31]}  Rac8 {[%clk 0:06:27]} 17. a5 {[%clk 0:06:06]}  cxd4 {[%clk 0:06:07]} 18. Nxd4 {[%clk 0:05:25]}  Qa6 {[%clk 0:04:53]} 19. Ne3 {[%clk 0:03:25]}  Qxe2 {[%clk 0:04:47]} 20. Nxe2 {[%clk 0:03:27]}  Nc5 {[%clk 0:04:21]} 21. Rxd8+ {[%clk 0:03:21]}  Bxd8 {[%clk 0:03:54]} 22. axb6 {[%clk 0:03:21]}  axb6 {[%clk 0:03:03]} 23. Nd4 {[%clk 0:03:09]}  Nd3 {[%clk 0:02:52]} 24. Nd1 {[%clk 0:02:57]}  e5 {[%clk 0:02:11]} 25. Nf5 {[%clk 0:02:47]}  Nd5 {[%clk 0:01:42]} 26. Bg3 {[%clk 0:02:07]}  Bg5 {[%clk 0:01:36]} 27. Kf1 {[%clk 0:01:27]}  Rd8 {[%clk 0:01:32]} 28. h4 {[%clk 0:01:14]}  Bc1 {[%clk 0:01:18]} 29. Rb1 {[%clk 0:00:41]}  g6 {[%clk 0:01:10]} 30. Nfe3 {[%clk 0:00:37]}  Bxe3 {[%clk 0:00:37]} 31. Nxe3 {[%clk 0:00:37]}  Nxe3+ {[%clk 0:00:38]} 32. fxe3 {[%clk 0:00:39]}  f5 {[%clk 0:00:39]} 33. Ke2 {[%clk 0:00:38]}  b5 {[%clk 0:00:33]} 34. e4 {[%clk 0:00:29]}  fxe4 {[%clk 0:00:33]} 35. Ke3 {[%clk 0:00:29]}  Kf7 {[%clk 0:00:11]} 36. Kxe4 {[%clk 0:00:30]}  Ke6 {[%clk 0:00:12]} 37. Ke3 {[%clk 0:00:31]}  Nc5 {[%clk 0:00:11]} 38. Ke2 {[%clk 0:00:28]}  Nb3 {[%clk 0:00:10]} 39. Rd1 {[%clk 0:00:24]}  Rxd1 {[%clk 0:00:12]} 40. Kxd1 {[%clk 0:00:25]}  e4 {[%clk 0:00:10]} 41. Ke2 {[%clk 0:00:23]}  Kd5 {[%clk 0:00:07]} 42. Ke3 {[%clk 0:00:22]}  Nc5 {[%clk 0:00:08]} 43. Bf4 {[%clk 0:00:22]}  h5 {[%clk 0:00:09]} 44. Bg3 {[%clk 0:00:21]}  Na4 {[%clk 0:00:07]} 45. Kf4 {[%clk 0:00:21]}  Nxb2 {[%clk 0:00:08]} 46. Kg5 {[%clk 0:00:21]}  Nd1 {[%clk 0:00:06]} 47. Be1 {[%clk 0:00:22]}  Ne3 {[%clk 0:00:04]} 48. g3 {[%clk 0:00:19]}  Nc2 {[%clk 0:00:05]} 49. Bd2 {[%clk 0:00:14]}  e3 {[%clk 0:00:07]} 50. Bxe3 {[%clk 0:00:14]}  Nxe3 {[%clk 0:00:08]} 51. Kxg6 {[%clk 0:00:14]}  Kc4 {[%clk 0:00:04]} 52. Kxh5 {[%clk 0:00:15]}  Kxc3 {[%clk 0:00:05]} 53. Kg6 {[%clk 0:00:13]}  b4 {[%clk 0:00:07]} 54. h5 {[%clk 0:00:14]}  b3 {[%clk 0:00:08]} 55. h6 {[%clk 0:00:15]}  b2 {[%clk 0:00:10]} 56. h7 {[%clk 0:00:16]}  b1=Q+ {[%clk 0:00:12]} 57. Kg7 {[%clk 0:00:15]}  Qb7+ {[%clk 0:00:14]} 58. Kg8 {[%clk 0:00:15]}  Qc8+ {[%clk 0:00:15]} 59. Kg7 {[%clk 0:00:16]}  Qd7+ {[%clk 0:00:17]} 60. Kg8 {[%clk 0:00:17]}  Qe8+ {[%clk 0:00:18]} 61. Kg7 {[%clk 0:00:18]}  Qe5+ {[%clk 0:00:13]} 62. Kg8 {[%clk 0:00:16]}  Qxg3+ {[%clk 0:00:13]} 63. Kf7 {[%clk 0:00:16]}  Qc7+ {[%clk 0:00:13]} 64. Kg8 {[%clk 0:00:17]}  Qd8+ {[%clk 0:00:15]} 65. Kg7 {[%clk 0:00:17]}  Nf5+ {[%clk 0:00:16]} 66. Kg6 {[%clk 0:00:18]}  Qh8 {[%clk 0:00:17]} 0-1


[Site "Internet"]

[Event "Chessable Masters - Torneo preliminare"]
[White "Tan, Zhongyi"]
[Black "Michalik, Peter"]
[WhiteFideId "8603642"]
[BlackFideId "14907526"]
[WhiteElo "2517"]
[BlackElo "2526"]
[Result "0-1"]
[Round "2"]
[TimeControl "600+2"]
[Date "2023.03.13"]
[WhiteClock "0:00:03"]
[BlackClock "0:00:12"]

1. d4 {[%clk 0:10:01]}  Nf6 {[%clk 0:09:39]} 2. c4 {[%clk 0:09:59]}  e6 {[%clk 0:09:40]} 3. Nf3 {[%clk 0:09:51]}  d5 {[%clk 0:09:40]} 4. Nc3 {[%clk 0:09:49]}  c5 {[%clk 0:09:35]} 5. cxd5 {[%clk 0:09:44]}  cxd4 {[%clk 0:09:34]} 6. Qxd4 {[%clk 0:09:27]}  exd5 {[%clk 0:09:34]} 7. Bg5 {[%clk 0:09:27]}  Be7 {[%clk 0:09:18]} 8. e3 {[%clk 0:09:28]}  O-O {[%clk 0:09:17]} 9. Be2 {[%clk 0:09:24]}  h6 {[%clk 0:09:17]} 10. Bh4 {[%clk 0:09:24]}  Nc6 {[%clk 0:09:18]} 11. Qd3 {[%clk 0:09:23]}  Qb6 {[%clk 0:08:40]} 12. O-O {[%clk 0:09:16]}  Be6 {[%clk 0:08:36]} 13. a3 {[%clk 0:09:13]}  Rfd8 {[%clk 0:08:30]} 14. Rfd1 {[%clk 0:09:14]}  a6 {[%clk 0:08:24]} 15. b4 {[%clk 0:09:04]}  Rac8 {[%clk 0:08:18]} 16. Rac1 {[%clk 0:09:03]}  Qa7 {[%clk 0:07:18]} 17. b5 {[%clk 0:08:14]}  axb5 {[%clk 0:07:13]} 18. Nxb5 {[%clk 0:08:15]}  Qa5 {[%clk 0:07:02]} 19. Nfd4 {[%clk 0:06:59]}  Nxd4 {[%clk 0:07:01]} 20. Nxd4 {[%clk 0:07:01]}  Rxc1 {[%clk 0:06:35]} 21. Rxc1 {[%clk 0:07:03]}  Qxa3 {[%clk 0:06:35]} 22. Qb1 {[%clk 0:06:41]}  Ne4 {[%clk 0:06:29]} 23. Nb5 {[%clk 0:06:11]}  Qxc1+ {[%clk 0:05:15]} 24. Qxc1 {[%clk 0:06:13]}  Bxh4 {[%clk 0:05:16]} 25. g3 {[%clk 0:06:06]}  Rc8 {[%clk 0:05:08]} 26. Qa3 {[%clk 0:05:16]}  Bf6 {[%clk 0:04:59]} 27. Bd3 {[%clk 0:03:51]}  Bh3 {[%clk 0:04:20]} 28. f3 {[%clk 0:03:46]}  Be7 {[%clk 0:03:46]} 29. Qb2 {[%clk 0:03:17]}  Bf6 {[%clk 0:03:44]} 30. Nd4 {[%clk 0:03:09]}  Nc5 {[%clk 0:03:37]} 31. Bc2 {[%clk 0:02:58]}  Ne6 {[%clk 0:03:28]} 32. Bd3 {[%clk 0:02:21]}  g6 {[%clk 0:02:33]} 33. Kf2 {[%clk 0:02:05]}  h5 {[%clk 0:02:11]} 34. Qb6 {[%clk 0:01:53]}  Rc3 {[%clk 0:01:58]} 35. Nxe6 {[%clk 0:01:23]}  Bxe6 {[%clk 0:01:34]} 36. Bxg6 {[%clk 0:01:17]}  d4 {[%clk 0:01:29]} 37. exd4 {[%clk 0:01:03]}  Rc4 {[%clk 0:01:21]} 38. Kg2 {[%clk 0:00:54]}  Rxd4 {[%clk 0:00:39]} 39. Bf5 {[%clk 0:00:17]}  Rd2+ {[%clk 0:00:38]} 40. Kh1 {[%clk 0:00:14]}  Bd8 {[%clk 0:00:19]} 41. Qb1 {[%clk 0:00:12]}  Bc4 {[%clk 0:00:09]} 42. Bh7+ {[%clk 0:00:10]}  Kg7 {[%clk 0:00:10]} 43. Be4 {[%clk 0:00:08]}  Be2 {[%clk 0:00:11]} 44. Qa1+ {[%clk 0:00:08]}  Bf6 {[%clk 0:00:12]} 45. Qa5 {[%clk 0:00:04]}  Rd1+ {[%clk 0:00:09]} 46. Kg2 {[%clk 0:00:05]}  Bf1+ {[%clk 0:00:10]} 47. Kg1 {[%clk 0:00:03]}  Bd4+ {[%clk 0:00:11]} 48. Kh1 {[%clk 0:00:03]}  Bh3+ {[%clk 0:00:12]} 0-1


[Site "Internet"]

[Event "Chessable Masters - Torneo preliminare"]
[White "Andreikin, Dmitry"]
[Black "Hammer, Jon Ludvig"]
[WhiteFideId "4158814"]
[BlackFideId "1503707"]
[WhiteElo "2628"]
[BlackElo "2647"]
[Result "1-0"]
[Round "2"]
[TimeControl "600+2"]
[Date "2023.03.13"]
[WhiteClock "0:04:27"]
[BlackClock "0:00:02"]

1. c4 {[%clk 0:10:01]}  e6 {[%clk 0:09:55]} 2. Nc3 {[%clk 0:10:00]}  d5 {[%clk 0:09:56]} 3. d4 {[%clk 0:10:01]}  Nf6 {[%clk 0:09:56]} 4. cxd5 {[%clk 0:10:00]}  exd5 {[%clk 0:09:57]} 5. Bg5 {[%clk 0:10:01]}  c6 {[%clk 0:09:58]} 6. e3 {[%clk 0:10:01]}  Bf5 {[%clk 0:09:59]} 7. Qf3 {[%clk 0:10:02]}  Bg6 {[%clk 0:10:00]} 8. Bxf6 {[%clk 0:10:02]}  Qxf6 {[%clk 0:10:01]} 9. Qxf6 {[%clk 0:10:03]}  gxf6 {[%clk 0:10:03]} 10. Nf3 {[%clk 0:09:58]}  Nd7 {[%clk 0:10:03]} 11. Nh4 {[%clk 0:09:56]}  Be7 {[%clk 0:10:04]} 12. g3 {[%clk 0:09:56]}  Nb6 {[%clk 0:09:51]} 13. O-O-O {[%clk 0:09:47]}  Nc8 {[%clk 0:09:45]} 14. Bd3 {[%clk 0:09:38]}  Bxd3 {[%clk 0:09:45]} 15. Rxd3 {[%clk 0:09:38]}  Nd6 {[%clk 0:09:47]} 16. Kc2 {[%clk 0:09:09]}  f5 {[%clk 0:09:44]} 17. Ng2 {[%clk 0:09:09]}  h5 {[%clk 0:09:44]} 18. h4 {[%clk 0:09:07]}  Ne4 {[%clk 0:09:45]} 19. Rf1 {[%clk 0:09:05]}  Bd6 {[%clk 0:09:44]} 20. Ne2 {[%clk 0:09:04]}  Kd7 {[%clk 0:09:28]} 21. Nef4 {[%clk 0:09:03]}  a5 {[%clk 0:09:16]} 22. a4 {[%clk 0:09:00]}  Ra6 {[%clk 0:08:15]} 23. Rb3 {[%clk 0:08:54]}  Kc7 {[%clk 0:07:52]} 24. Kd3 {[%clk 0:08:51]}  Rb6 {[%clk 0:07:48]} 25. Rxb6 {[%clk 0:08:50]}  Kxb6 {[%clk 0:07:48]} 26. Ke2 {[%clk 0:08:51]}  Kc7 {[%clk 0:07:47]} 27. Rc1 {[%clk 0:08:51]}  Kd7 {[%clk 0:07:47]} 28. Nd3 {[%clk 0:08:48]}  Ke7 {[%clk 0:07:24]} 29. Ngf4 {[%clk 0:08:48]}  Nf6 {[%clk 0:07:04]} 30. Rc3 {[%clk 0:08:34]}  Rb8 {[%clk 0:06:58]} 31. Rb3 {[%clk 0:08:10]}  Bxf4 {[%clk 0:06:35]} 32. Nxf4 {[%clk 0:08:08]}  b5 {[%clk 0:06:25]} 33. Kf3 {[%clk 0:07:34]}  Ne4 {[%clk 0:06:07]} 34. Ke2 {[%clk 0:07:34]}  Nf6 {[%clk 0:06:07]} 35. Nd3 {[%clk 0:07:24]}  Nd7 {[%clk 0:06:06]} 36. Ra3 {[%clk 0:07:11]}  bxa4 {[%clk 0:05:44]} 37. Rxa4 {[%clk 0:07:11]}  Rb5 {[%clk 0:05:44]} 38. b4 {[%clk 0:06:46]}  axb4 {[%clk 0:05:46]} 39. Nxb4 {[%clk 0:06:44]}  Kd6 {[%clk 0:05:34]} 40. Nd3 {[%clk 0:06:43]}  Rb7 {[%clk 0:04:45]} 41. Ra8 {[%clk 0:06:36]}  Nf6 {[%clk 0:04:25]} 42. Kf3 {[%clk 0:06:18]}  Ne4 {[%clk 0:04:18]} 43. Ra2 {[%clk 0:05:19]}  Rb3 {[%clk 0:03:16]} 44. Nf4 {[%clk 0:05:17]}  Nf6 {[%clk 0:02:32]} 45. Ra7 {[%clk 0:05:13]}  Rb2 {[%clk 0:01:55]} 46. Rxf7 {[%clk 0:05:12]}  Ne4 {[%clk 0:01:56]} 47. Nh3 {[%clk 0:05:10]}  Ke6 {[%clk 0:01:32]} 48. Rh7 {[%clk 0:05:03]}  Nf6 {[%clk 0:01:05]} 49. Rc7 {[%clk 0:05:02]}  Rc2 {[%clk 0:01:00]} 50. Kf4 {[%clk 0:04:56]}  Ne4 {[%clk 0:00:39]} 51. f3 {[%clk 0:04:46]}  Nd6 {[%clk 0:00:04]} 52. Ng5+ {[%clk 0:04:30]}  Kf6 {[%clk 0:00:05]} 53. Nh7+ {[%clk 0:04:31]}  Ke6 {[%clk 0:00:05]} 54. Nf8+ {[%clk 0:04:32]}  Kf6 {[%clk 0:00:06]} 55. Nd7+ {[%clk 0:04:34]}  Ke6 {[%clk 0:00:07]} 56. Nc5+ {[%clk 0:04:33]}  Kf6 {[%clk 0:00:09]} 57. Rxc6 {[%clk 0:04:33]}  Ke7 {[%clk 0:00:08]} 58. Rc7+ {[%clk 0:04:28]}  Ke8 {[%clk 0:00:10]} 59. Rh7 {[%clk 0:04:27]}  Re2 {[%clk 0:00:02]} 60. Rxh5 {[%clk 0:04:27]} 1-0


[Site "Internet"]

[Event "Chessable Masters - Torneo preliminare"]
[White "Rustemov, Alexander"]
[Black "Vachier-Lagrave, Maxime"]
[WhiteFideId "4119002"]
[BlackFideId "623539"]
[WhiteElo "2494"]
[BlackElo "2762"]
[Result "0-1"]
[Round "2"]
[TimeControl "600+2"]
[Date "2023.03.13"]
[WhiteClock "0:00:25"]
[BlackClock "0:05:42"]

1. d4 {[%clk 0:10:01]}  Nf6 {[%clk 0:09:58]} 2. c4 {[%clk 0:10:01]}  e6 {[%clk 0:09:59]} 3. Nf3 {[%clk 0:10:01]}  d5 {[%clk 0:09:55]} 4. Nc3 {[%clk 0:09:48]}  Bb4 {[%clk 0:09:55]} 5. Bg5 {[%clk 0:09:47]}  h6 {[%clk 0:09:55]} 6. Bxf6 {[%clk 0:09:48]}  Qxf6 {[%clk 0:09:56]} 7. e3 {[%clk 0:09:50]}  O-O {[%clk 0:09:51]} 8. Qb3 {[%clk 0:09:49]}  c5 {[%clk 0:09:39]} 9. cxd5 {[%clk 0:09:49]}  exd5 {[%clk 0:09:40]} 10. dxc5 {[%clk 0:09:50]}  Nc6 {[%clk 0:09:39]} 11. O-O-O {[%clk 0:09:50]}  Bxc5 {[%clk 0:09:16]} 12. Nxd5 {[%clk 0:09:46]}  Qd8 {[%clk 0:09:16]} 13. Kb1 {[%clk 0:09:17]}  Be6 {[%clk 0:09:07]} 14. Bc4 {[%clk 0:09:12]}  Na5 {[%clk 0:08:51]} 15. Qd3 {[%clk 0:08:35]}  Nxc4 {[%clk 0:08:17]} 16. Qxc4 {[%clk 0:08:35]}  Rc8 {[%clk 0:08:19]} 17. Qd3 {[%clk 0:06:12]}  Qa5 {[%clk 0:08:15]} 18. Qd2 {[%clk 0:04:37]}  Qa4 {[%clk 0:07:39]} 19. Nc3 {[%clk 0:04:28]}  Qa6 {[%clk 0:07:36]} 20. Nd4 {[%clk 0:04:13]}  Rfd8 {[%clk 0:07:35]} 21. Qc2 {[%clk 0:03:57]}  Bxd4 {[%clk 0:07:33]} 22. Rxd4 {[%clk 0:03:38]}  Rxd4 {[%clk 0:07:32]} 23. exd4 {[%clk 0:03:38]}  Bxa2+ {[%clk 0:07:34]} 24. Kc1 {[%clk 0:03:33]}  b5 {[%clk 0:06:00]} 25. Kd2 {[%clk 0:02:31]}  Qf6 {[%clk 0:05:59]} 26. Qe4 {[%clk 0:01:49]}  Qxf2+ {[%clk 0:05:56]} 27. Ne2 {[%clk 0:01:48]}  Bb3 {[%clk 0:05:45]} 28. Qf3 {[%clk 0:00:24]}  Rc2+ {[%clk 0:05:42]} 29. Kd3 {[%clk 0:00:25]}  Rxe2 {[%clk 0:05:42]} 0-1


[Site "Internet"]

[Event "Chessable Masters - Torneo preliminare"]
[White "Aronian, Levon"]
[Black "Tari, Aryan"]
[WhiteFideId "13300474"]
[BlackFideId "1510045"]
[WhiteElo "2720"]
[BlackElo "2539"]
[Result "1-0"]
[Round "2"]
[TimeControl "600+2"]
[Date "2023.03.13"]
[WhiteClock "0:05:33"]
[BlackClock "0:03:08"]

1. e4 {[%clk 0:10:01]}  c6 {[%clk 0:09:48]} 2. Nf3 {[%clk 0:09:57]}  d5 {[%clk 0:09:49]} 3. d3 {[%clk 0:09:58]}  dxe4 {[%clk 0:09:48]} 4. dxe4 {[%clk 0:09:59]}  Qxd1+ {[%clk 0:09:49]} 5. Kxd1 {[%clk 0:10:01]}  Nf6 {[%clk 0:09:49]} 6. Nbd2 {[%clk 0:10:02]}  g6 {[%clk 0:09:20]} 7. Ne1 {[%clk 0:09:55]}  Bg7 {[%clk 0:09:17]} 8. f3 {[%clk 0:09:55]}  b6 {[%clk 0:08:39]} 9. a4 {[%clk 0:09:49]}  Nfd7 {[%clk 0:08:10]} 10. a5 {[%clk 0:09:42]}  b5 {[%clk 0:08:10]} 11. Nb3 {[%clk 0:09:12]}  Na6 {[%clk 0:07:49]} 12. c3 {[%clk 0:08:47]}  Ndc5 {[%clk 0:07:07]} 13. Nxc5 {[%clk 0:08:46]}  Nxc5 {[%clk 0:07:07]} 14. Be3 {[%clk 0:08:48]}  Ne6 {[%clk 0:06:44]} 15. Nd3 {[%clk 0:08:12]}  a6 {[%clk 0:06:11]} 16. Be2 {[%clk 0:08:07]}  Bb7 {[%clk 0:05:37]} 17. Kc2 {[%clk 0:08:02]}  O-O-O {[%clk 0:05:21]} 18. Rad1 {[%clk 0:07:06]}  f5 {[%clk 0:04:44]} 19. exf5 {[%clk 0:06:49]}  gxf5 {[%clk 0:04:45]} 20. Rhe1 {[%clk 0:06:50]}  Bf6 {[%clk 0:04:41]} 21. Nc5 {[%clk 0:06:33]}  Nxc5 {[%clk 0:04:35]} 22. Bxc5 {[%clk 0:06:35]}  Rxd1 {[%clk 0:04:29]} 23. Bxd1 {[%clk 0:06:30]}  Kd7 {[%clk 0:04:23]} 24. f4 {[%clk 0:06:29]}  Ke8 {[%clk 0:04:20]} 25. Bh5+ {[%clk 0:06:22]}  Kd8 {[%clk 0:04:18]} 26. Rd1+ {[%clk 0:06:03]}  Kc7 {[%clk 0:03:54]} 27. Re1 {[%clk 0:06:02]}  Kd8 {[%clk 0:03:51]} 28. Bf7 {[%clk 0:06:02]}  Rf8 {[%clk 0:03:08]} 29. Be6 {[%clk 0:05:59]}  Kc7 {[%clk 0:03:09]} 30. Bxf5 {[%clk 0:05:51]}  Bh4 {[%clk 0:03:09]} 31. Re5 {[%clk 0:05:46]}  Bc8 {[%clk 0:03:10]} 32. Bxc8 {[%clk 0:05:40]}  Kxc8 {[%clk 0:03:12]} 33. g3 {[%clk 0:05:33]}  Bf6 {[%clk 0:03:08]} 34. Bxe7 {[%clk 0:05:33]} 1-0


[Site "Internet"]